bitfinex/quotes_ETHUSD_20260216
["timestamp","ask_amount","ask_price","bid_price","bid_amount"]
[1771217950349,1.291,1974.0,1973.7,0.001]
[1771217952259,1.291,1974.0,1973.7,0.46171489]
[1771217952462,1.291,1973.9,1973.7,0.46171489]
[1771217956041,0.0011,1974.1,1973.7,0.46171489]
[1771217956364,1.289,1974.0,1973.7,0.46171489]
[1771217957135,1.289,1974.0,1973.7,0.001]
[1771217958557,1.289,1974.0,1973.7,0.48973156]
[1771217958957,1.289,1974.0,1973.8,0.001]
[1771217959154,1.289,1974.0,1973.9,0.48873156]
[1771217959471,1.2891,1974.2,1973.9,0.48873156]
[1771217960552,0.0011,1974.2,1974.1,0.48873156]
[1771217960940,0.0011,1974.2,1973.9,0.48873156]
[1771217961660,0.0011,1974.2,1973.8,8.20055037]
[1771217969282,0.0011,1974.2,1973.9,0.48873156]
[1771217969488,0.0011,1974.2,1973.9,0.5388751]
[1771217970944,0.0011,1974.2,1973.9,0.5398751]
[1771217971472,2.2011,1974.4,1973.9,0.48973156]
[1771217971973,0.49745556,1974.3,1973.9,0.001]
[1771217974754,2.2011,1974.4,1973.9,0.001]
[1771217974961,2.2011,1974.4,1973.9,0.48973156]
[1771217975453,2.2011,1974.4,1974.0,7.71081881]
[1771217975850,2.2011,1974.4,1974.0,8.19955037]
[1771217976663,1.2891,1974.4,1974.0,7.71081881]
[1771217977177,1.2891,1974.4,1974.0,8.19955037]
[1771217980857,1.2891,1974.4,1974.0,7.71081881]
[1771217982893,1.2891,1974.4,1973.9,3.791]
[1771217983097,1.78655556,1974.4,1973.9,3.791]
[1771217983396,1.78655556,1974.4,1974.1,0.001]
[1771217983595,0.0011,1974.3,1974.1,0.001]
[1771217987406,1.2891,1974.4,1974.2,0.46382531]
[1771217989990,1.2891,1974.4,1974.1,8.17564412]
[1771217992006,1.2891,1974.4,1974.2,0.46382531]
[1771217993207,0.45663071,1975.0,1974.3,7.71081881]
[1771217993377,0.45663071,1975.0,1974.2,0.46382531]
[1771217993378,0.45663071,1975.0,1974.5,7.71081881]
[1771217994798,0.45663071,1975.0,1974.3,8.17464412]
[1771217995809,0.45663071,1975.0,1974.3,7.71081881]
[1771217996409,0.0011,1974.4,1974.3,7.71081881]
[1771217999385,0.0011,1974.6,1974.3,7.71081881]
[1771217999715,0.45619185,1974.6,1974.2,0.001]
[1771218000381,0.0011,1974.6,1974.3,7.71081881]
[1771218001189,0.00153886,1975.0,1974.6,0.46382531]
[1771218001384,1.72909185,1975.4,1974.8,8.17464412]
[1771218001598,1.72909185,1975.4,1975.0,7.71081881]
[1771218002012,1.274,1975.4,1975.0,7.71081881]
[1771218002285,0.1320599,1975.9,1975.1,0.46382531]
[1771218002489,2.77315175,1975.9,1975.2,8.17464412]
[1771218003508,2.77315175,1975.9,1975.1,0.46382531]
[1771218003509,0.45509185,1975.8,1975.1,0.46382531]
[1771218003707,0.45509185,1975.8,1975.0,7.71081881]
[1771218003908,0.1320599,1975.9,1975.1,0.46382531]
[1771218004113,0.1320599,1975.9,1975.3,8.17464412]
[1771218004315,0.58715175,1975.9,1975.3,8.17464412]
[1771218004822,0.58715175,1975.9,1974.9,7.71081881]
[1771218004823,0.45509185,1975.8,1974.9,7.71081881]
[1771218005117,0.45509185,1975.3,1974.5,8.17464412]
[1771218005294,0.45509185,1975.2,1974.5,8.17464412]
[1771218005722,0.45509185,1975.1,1974.3,7.71081881]
[1771218005905,0.45509185,1974.9,1974.2,0.001]
[1771218006310,0.45509185,1974.9,1974.3,7.71081881]
[1771218006917,0.45509185,1975.1,1974.3,7.71081881]
[1771218007119,0.45509185,1975.5,1974.5,7.71081881]
[1771218007322,0.45509185,1975.1,1974.3,8.17464412]
[1771218007518,0.45509185,1975.0,1974.2,0.001]
[1771218008032,0.45509185,1974.8,1974.2,0.001]
[1771218008206,1.276,1974.7,1974.3,7.71081881]
[1771218009418,1.276,1974.7,1974.2,0.001]
[1771218011205,0.45509185,1974.6,1974.2,0.001]
[1771218013536,0.45509185,1974.4,1974.2,0.001]
[1771218015736,0.46915335,1974.2,1974.0,0.00253886]
[1771218015939,1.277,1974.1,1974.0,0.00253886]
[1771218022053,1.74615335,1974.1,1974.0,0.00253886]
[1771218022250,1.74615335,1974.1,1973.6,0.001]
[1771218022251,0.46915335,1974.0,1973.6,0.001]
[1771218027477,1.277,1974.1,1973.6,0.001]
[1771218027649,1.277,1974.1,1973.6,7.70500795]
[1771218029865,1.277,1974.1,1973.6,0.001]
[1771218030069,1.74615335,1974.1,1973.6,0.001]
[1771218034080,1.74615335,1974.1,1973.7,0.001]
[1771218034270,0.0011,1974.0,1973.7,0.001]
[1771218036776,0.47025335,1974.0,1973.7,0.001]
[1771218039285,0.0011,1974.0,1973.7,0.001]
[1771218043472,0.0011,1974.1,1973.9,8.1953915]
[1771218044172,0.0011,1974.1,1974.0,0.48243452]
[1771218044688,1.2701,1974.3,1974.0,0.48243452]
[1771218044915,0.912,1974.4,1973.7,0.001]
[1771218044916,1.269,1974.6,1974.1,8.18644247]
[1771218045704,1.269,1974.6,1974.1,7.70400795]
[1771218045873,1.75271502,1974.6,1974.1,7.70400795]
[1771218046196,0.48371502,1974.5,1974.1,7.70400795]
[1771218046900,1.269,1974.6,1973.9,7.70400795]
[1771218046901,0.0011,1974.1,1973.9,7.70400795]
[1771218047082,0.0011,1974.1,1973.8,0.001]
[1771218047279,0.0011,1974.1,1973.9,7.70400795]
[1771218047477,0.0011,1974.3,1974.0,0.48230891]
[1771218048080,0.0011,1974.3,1973.8,0.001]
[1771218048271,0.0011,1974.3,1973.8,0.48330891]
[1771218049598,0.0011,1974.3,1973.9,1.3]
[1771218050472,0.48481502,1974.3,1973.9,1.3]
[1771218050697,0.48481502,1974.3,1973.8,0.001]
[1771218052075,0.0011,1974.3,1973.8,0.001]
[1771218053399,0.48481502,1974.3,1973.8,0.001]
[1771218055097,0.48481502,1974.3,1973.0,0.00153886]
[1771218055275,0.48371502,1974.2,1973.0,0.48384777]
[1771218055476,0.48371502,1974.0,1973.0,0.48384777]
[1771218055679,0.48371502,1973.8,1973.0,0.48384777]
[1771218056001,0.48371502,1973.8,1973.0,0.00153886]
[1771218058774,0.48371502,1973.8,1973.5,0.001]
[1771218058975,0.48371502,1973.8,1973.0,0.00153886]
[1771218058976,0.48371502,1973.7,1973.0,0.00153886]
[1771218062625,0.912,1973.6,1973.0,0.00153886]
[1771218062791,2.66071502,1973.6,1973.0,0.00153886]
[1771218064227,0.48371502,1973.5,1973.0,0.00153886]
[1771218071117,0.48371502,1973.5,1973.1,0.001]
[1771218071422,0.48371502,1973.3,1972.4,0.48230891]
[1771218071619,0.48371502,1973.3,1973.0,0.001]
[1771218072008,0.48371502,1973.3,1972.8,0.001]
[1771218078627,0.48371502,1973.3,1972.3,0.001]
[1771218080026,0.48371502,1973.3,1972.3,0.51751131]
[1771218080209,0.48371502,1973.3,1972.3,0.46696097]
[1771218081611,0.48371502,1973.3,1972.3,0.001]
[1771218083508,0.49835499,1973.1,1972.3,0.001]
[1771218083711,0.49835499,1972.9,1972.3,0.001]
[1771218084138,0.49835499,1972.9,1972.4,0.001]
[1771218088027,8.22014242,1972.9,1972.4,0.001]
[1771218090041,0.913,1972.8,1972.4,0.001]
[1771218090717,1.41135499,1972.8,1972.4,0.001]
[1771218092734,7.72178743,1972.7,1972.4,0.001]
[1771218092919,1.26193106,1972.6,1972.4,0.001]
[1771218094535,1.76028605,1972.6,1972.4,0.001]
[1771218094740,7.72178743,1972.5,1972.2,0.001]
[1771218095716,8.22014242,1972.5,1972.4,0.001]
[1771218095923,0.49835499,1972.4,1972.2,0.001]
[1771218096241,1.27,1972.3,1972.2,0.001]
[1771218097238,9.49014242,1972.3,1971.8,0.001]
[1771218097444,7.72178743,1972.1,1971.8,0.001]
[1771218097615,1.271,1972.0,1971.8,0.001]
[1771218098641,0.79615894,1972.0,1971.8,0.001]
[1771218100909,1.29451393,1972.0,1971.8,0.001]
[1771218101748,7.72178743,1971.9,1971.6,0.001]
[1771218102052,1.29451393,1972.0,1971.6,0.001]
[1771218102247,1.29451393,1972.0,1971.4,33.05875479]
[1771218102449,0.49835499,1971.9,1971.4,32.59279382]
[1771218103150,0.49835499,1971.9,1971.4,10.27352456]
[1771218103350,0.49835499,1971.7,1971.4,10.21352456]
[1771218103523,0.47431729,1971.5,1971.4,10.21352456]
[1771218104019,0.47431729,1971.5,1971.4,9.90302239]
[1771218104220,0.47431729,1971.5,1971.0,0.00153886]
[1771218104421,1.38731729,1971.4,1971.0,0.00153886]
[1771218104622,1.275,1971.3,1971.0,0.00153886]
[1771218106151,0.60726351,1971.2,1970.2,0.60325661]
[1771218106352,0.60726351,1971.8,1970.2,0.60325661]
[1771218106550,1.433,1971.7,1970.2,0.60325661]
[1771218106741,0.60880237,1972.0,1970.5,0.60325661]
[1771218106947,2.29326351,1971.9,1970.5,0.60325661]
[1771218107537,0.60726351,1971.8,1970.6,0.60325661]
[1771218108155,0.60726351,1971.8,1971.5,0.001]
[1771218108356,0.60726351,1971.8,1971.0,0.60325661]
[1771218108526,0.60726351,1971.8,1971.4,0.001]
[1771218112268,0.60726351,1971.8,1971.2,0.001]
[1771218112562,1.686,1971.9,1971.2,0.60425661]
[1771218113058,2.29326351,1971.9,1971.2,0.60425661]
[1771218115062,1.686,1971.9,1971.2,0.60425661]
[1771218116546,2.29326351,1971.9,1971.2,0.60425661]
[1771218117052,1.686,1971.9,1971.2,0.60425661]
[1771218118239,2.17453886,1972.0,1971.2,0.60425661]
[1771218119554,2.17453886,1972.0,1971.2,4.39425661]
[1771218119754,2.17453886,1972.0,1971.3,0.60325661]
[1771218120476,2.17453886,1972.0,1971.3,0.65318645]
[1771218121173,2.17453886,1972.0,1971.3,0.65418645]
[1771218121673,0.60836351,1971.9,1971.3,0.001]
[1771218122773,0.0011,1971.9,1971.3,0.60425661]
[1771218123876,0.0011,1971.9,1971.4,0.60325661]
[1771218125777,0.0011,1971.9,1971.3,0.60425661]
[1771218125778,7.7277854,1971.9,1971.3,0.60425661]
[1771218125969,0.0011,1971.9,1971.3,0.60425661]
[1771218126171,0.0011,1971.9,1971.4,0.60325661]
[1771218129488,0.913,1971.8,1971.4,0.60325661]
[1771218129687,0.913,1971.8,1971.3,0.001]
[1771218131405,1.52026351,1971.8,1971.3,0.001]
[1771218131792,0.60726351,1971.7,1971.3,0.001]
[1771218133257,8.33773516,1971.6,1971.3,0.001]
[1771218133490,1.28,1971.5,1971.4,0.001]
[1771218133677,1.28,1971.5,1971.2,0.001]
[1771218133987,7.73047165,1971.4,1971.1,0.001]
[1771218134294,0.57399358,1971.3,1970.5,0.55076779]
[1771218134674,8.30446523,1971.2,1970.5,0.55076779]
[1771218134857,0.913,1971.1,1970.5,0.55076779]
[1771218135058,1.281,1971.0,1970.5,0.55076779]
[1771218135960,1.281,1971.0,1970.3,0.55076779]
[1771218135961,1.85499358,1971.0,1970.3,0.55076779]
[1771218136775,0.57399358,1970.9,1970.1,0.55076779]
[1771218136972,1.281,1971.0,1970.1,0.55076779]
[1771218137284,1.85499358,1971.0,1970.1,0.55076779]
[1771218137460,1.281,1971.0,1970.1,0.55076779]
[1771218137860,1.146,1970.9,1970.2,0.55076779]
[1771218138988,0.914,1971.0,1970.4,0.55076779]
[1771218138989,1.051,1971.0,1970.4,0.55076779]
[1771218141969,1.62499358,1971.0,1970.2,0.55076779]
[1771218142208,1.62499358,1971.0,1970.3,3.79]
[1771218142500,1.62499358,1971.0,1970.0,0.13923525]
[1771218142501,0.57399358,1970.9,1970.1,0.55076779]
[1771218142661,0.57399358,1970.9,1970.0,0.13923525]
[1771218142863,0.57399358,1970.9,1970.1,0.55076779]
[1771218144494,0.57399358,1970.9,1970.0,0.13923525]
[1771218145293,0.57399358,1970.9,1970.1,0.55076779]
[1771218145993,0.57399358,1971.5,1970.5,0.001]
[1771218146194,0.0011,1970.9,1970.5,0.001]
[1771218146366,0.0011,1970.9,1970.5,0.55176779]
[1771218146562,0.57399358,1971.7,1970.6,0.55076779]
[1771218146767,1.607,1971.6,1970.6,0.55076779]
[1771218147065,0.0011,1971.2,1970.5,0.001]
[1771218147673,0.0011,1971.2,1970.5,0.55176779]
[1771218151496,0.0011,1971.2,1970.5,3.791]
[1771218151701,0.0011,1971.2,1970.6,0.55076779]
[1771218155805,0.57509358,1971.2,1970.5,0.001]
[1771218158978,0.57399358,1971.0,1970.5,0.001]
[1771218159284,0.57399358,1970.8,1970.5,0.001]
[1771218162312,2.75399358,1970.9,1970.5,0.001]
[1771218162513,0.57399358,1970.8,1970.5,0.001]
[1771218164513,0.57399358,1970.8,1970.0,0.69000304]
[1771218167484,0.57399358,1970.8,1970.1,0.51771365]
[1771218170024,0.57399358,1970.8,1970.1,4.30771365]
[1771218171894,0.57399358,1970.8,1970.2,0.001]
[1771218178027,0.57399358,1970.8,1970.2,0.51871365]
[1771218179733,0.914,1970.7,1970.2,0.51871365]
[1771218180104,8.65177989,1970.7,1970.2,0.001]
[1771218180311,9.16881581,1970.7,1970.2,0.001]
[1771218180518,1.43103592,1970.7,1970.2,0.001]
[1771218183536,0.51703592,1970.6,1970.2,0.001]
[1771218184110,0.51703592,1970.2,1970.0,0.14023525]
[1771218184412,1.254,1970.1,1970.0,0.14023525]
[1771218187019,1.77103592,1970.1,1970.0,0.14023525]
[1771218187540,0.9151,1970.7,1970.0,0.14023525]
[1771218187541,7.73887989,1970.7,1970.0,0.14023525]
[1771218187842,2.17,1970.6,1970.0,0.6579489]
[1771218188407,2.68703592,1970.6,1970.0,0.6579489]
[1771218188613,0.51703592,1970.5,1970.0,0.14023525]
[1771218188806,2.17,1970.6,1970.0,0.6579489]
[1771218189041,2.17,1970.6,1970.1,0.51771365]
[1771218190639,2.68703592,1970.6,1970.0,0.14023525]
[1771218191808,0.51703592,1970.5,1970.0,0.14023525]
[1771218192847,0.51703592,1970.2,1970.0,0.01306272]
[1771218193016,1.259,1970.1,1970.0,0.01306272]
[1771218193637,1.7444317,1970.1,1970.0,0.01306272]
[1771218194341,0.4854317,1970.0,1969.3,8.26068197]
[1771218194547,0.4854317,1970.0,1969.3,0.51789008]
[1771218194548,0.914,1969.9,1969.3,0.51789008]
[1771218194846,1.3994317,1969.9,1969.3,0.51789008]
[1771218195519,0.4854317,1969.8,1969.4,0.01306272]
[1771218195749,1.7464317,1969.7,1969.4,0.01306272]
[1771218196713,1.7464317,1969.7,1969.0,0.00153886]
[1771218196714,0.4854317,1969.4,1969.0,0.00153886]
[1771218196913,1.261,1969.3,1969.1,0.01306272]
[1771218197337,1.261,1969.3,1969.0,0.00153886]
[1771218197618,1.7464317,1969.3,1969.1,0.01306272]
[1771218197952,0.914,1969.2,1969.0,0.00153886]
[1771218198164,0.1024,1970.1,1969.0,0.01460158]
[1771218198361,0.4854317,1969.9,1969.0,0.53249166]
[1771218198523,1.262,1969.8,1969.0,0.53249166]
[1771218198932,1.262,1969.8,1969.1,0.01306272]
[1771218199182,1.262,1969.8,1969.2,0.51789008]
[1771218199450,1.262,1969.8,1969.2,0.51889008]
[1771218199650,1.262,1969.8,1969.3,0.5309528]
[1771218200757,1.7474317,1969.8,1969.3,0.01306272]
[1771218204091,1.262,1969.8,1969.3,0.5309528]
[1771218205060,1.076,1969.8,1969.3,0.5309528]
[1771218205457,1.076,1969.8,1969.4,0.01306272]
[1771218205661,1.076,1969.8,1969.4,0.5309528]
[1771218211944,1.076,1969.8,1969.5,0.01306272]
[1771218212274,1.076,1969.8,1969.5,0.5309528]
[1771218216276,0.0011,1969.9,1969.5,0.5309528]
[1771218216647,0.0011,1969.9,1969.5,0.51789008]
[1771218216849,0.0011,1969.9,1969.6,0.5309528]
[1771218217678,0.0011,1970.1,1969.8,0.51789008]
[1771218218175,0.0011,1970.1,1969.9,0.01196272]
[1771218218550,0.0011,1970.1,1970.0,0.01196272]
[1771218221782,0.4865317,1970.1,1969.5,0.51789008]
[1771218221972,0.4865317,1970.1,1969.6,0.01196272]
[1771218225593,1.252,1970.0,1969.6,0.01196272]
[1771218226715,0.00263886,1971.0,1970.0,0.49943677]
[1771218226992,0.00263886,1971.0,1970.6,7.73905931]
[1771218227159,1.40673541,1971.1,1970.7,0.00976272]
[1771218229067,1.40673541,1971.1,1970.4,8.23849608]
[1771218229278,1.40673541,1971.1,1970.5,0.00976272]
[1771218232995,0.90767834,1971.1,1970.5,0.50919949]
[1771218235395,0.90767834,1971.1,1970.5,0.49943677]
[1771218235595,0.90767834,1971.1,1970.6,0.00976272]
[1771218235800,1.40673541,1971.1,1970.6,0.00976272]
[1771218237696,0.49905707,1971.0,1970.6,0.00976272]
[1771218238203,0.914,1970.9,1970.6,0.00976272]
[1771218240998,1.41305707,1970.9,1970.6,0.00976272]
[1771218241197,1.41305707,1970.9,1970.6,0.01076272]
[1771218241778,0.49905707,1970.8,1970.6,0.01076272]
[1771218241980,0.49905707,1970.8,1970.3,3.79]
[1771218242185,0.49905707,1970.8,1970.4,0.01076272]
[1771218243781,0.49905707,1970.8,1970.0,0.00153886]
[1771218244009,0.49905707,1970.8,1970.1,0.01176272]
[1771218244599,0.914,1970.7,1970.1,0.01176272]
[1771218244796,0.782,1970.6,1970.1,0.51119949]
[1771218245214,0.49905707,1970.5,1970.1,0.01176272]
[1771218245995,0.782,1970.6,1970.1,0.01176272]
[1771218246513,0.49905707,1970.5,1970.0,0.00153886]
[1771218246720,0.49905707,1970.5,1970.2,0.01176272]
[1771218248033,0.782,1970.6,1970.2,0.01176272]
[1771218248240,1.28105707,1970.6,1970.2,0.01176272]
[1771218248640,1.28105707,1970.6,1970.3,0.01176272]
[1771218248841,0.49905707,1970.5,1970.1,0.01176272]
[1771218251043,0.782,1970.6,1970.1,0.01176272]
[1771218251227,1.28105707,1970.6,1970.1,0.01176272]
[1771218251739,0.49905707,1970.5,1970.1,0.01176272]
[1771218251936,0.914,1970.4,1970.1,0.01176272]
[1771218252136,1.41305707,1970.4,1970.1,0.01176272]
[1771218253247,0.49905707,1970.3,1970.1,0.01176272]
[1771218253745,0.914,1970.4,1970.1,0.01176272]
[1771218254413,0.914,1970.4,1970.2,0.001]
[1771218254824,0.9151,1970.4,1970.3,0.01176272]
[1771218255237,1.44922708,1970.4,1970.3,0.01176272]
[1771218255637,0.53412708,1970.3,1970.2,0.001]
[1771218255816,0.53412708,1970.3,1970.2,0.01276272]
[1771218256342,0.53412708,1970.3,1970.2,0.00159534]
[1771218256737,0.53412708,1970.3,1969.6,12.03999272]
[1771218256937,0.53412708,1970.3,1969.7,3.74119572]
[1771218257855,0.53412708,1970.1,1969.6,0.001]
[1771218258028,1.242,1970.0,1969.6,0.001]
[1771218261845,1.77612708,1970.0,1969.6,0.001]
[1771218262430,0.53412708,1969.9,1969.6,0.001]
[1771218266253,2.158,1969.8,1969.6,7.73990199]
[1771218266448,1.244,1969.7,1969.6,7.73990199]
[1771218266637,1.243,1969.7,1969.6,7.73990199]
[1771218266823,1.214,1969.7,1969.6,7.73990199]
[1771218267029,1.214,1969.8,1969.6,7.73990199]
[1771218267333,1.214,1969.8,1969.6,0.001]
[1771218269231,1.214,1969.8,1969.7,0.001]
[1771218270460,0.53412708,1969.7,1969.5,0.001]
[1771218270670,0.53412708,1969.7,1969.0,0.00153886]
[1771218275637,0.914,1969.6,1969.0,0.00153886]
[1771218276548,1.44812708,1969.6,1969.0,0.00153886]
[1771218277578,0.53412708,1969.5,1969.0,0.00153886]
[1771218277806,0.914,1969.6,1969.0,0.00153886]
[1771218277969,0.914,1969.6,1969.0,0.51162959]
[1771218278287,2.68812708,1969.7,1969.0,0.51162959]
[1771218279875,2.68812708,1969.7,1969.0,4.25282531]
[1771218280077,0.53412708,1969.6,1969.0,0.00153886]
[1771218281957,0.53412708,1969.6,1969.1,0.001]
[1771218282159,0.53412708,1969.4,1969.1,0.001]
[1771218283685,0.0011,1969.5,1969.1,0.001]
[1771218285787,0.0011,1969.5,1969.1,0.62032156]
[1771218285987,0.0011,1969.5,1969.1,0.001]
[1771218288698,0.0011,1969.5,1969.1,3.74219572]
[1771218289284,0.59859859,1969.5,1969.1,3.74219572]
[1771218290301,0.0011,1969.5,1969.1,3.74219572]
[1771218291678,0.59859859,1969.5,1969.1,3.74219572]
[1771218292070,0.0011,1969.5,1969.1,3.74219572]
[1771218294401,0.59859859,1969.5,1969.1,3.74219572]
[1771218294591,0.59859859,1969.5,1969.1,0.001]
[1771218296201,0.0011,1969.5,1969.1,0.001]
[1771218299504,0.59859859,1969.5,1969.1,0.001]
[1771218302006,0.59859859,1969.5,1968.1,0.61932156]
[1771218302193,0.59749859,1969.4,1968.1,0.61932156]
[1771218302394,0.59749859,1969.2,1968.1,0.61932156]
[1771218302724,0.59749859,1969.0,1968.0,0.00153886]
[1771218304192,0.59749859,1968.9,1968.0,0.00153886]
[1771218305796,0.59749859,1968.7,1968.0,0.00153886]
[1771218306128,0.59749859,1968.6,1967.3,0.61932156]
[1771218310321,0.59749859,1968.6,1967.5,0.61932156]
[1771218311494,1.51249859,1968.5,1967.5,0.61932156]
[1771218311830,1.31549859,1968.4,1967.5,0.61932156]
[1771218313438,0.59749859,1968.3,1967.5,0.61932156]
[1771218313938,0.59749859,1968.3,1967.5,8.37642131]
[1771218315909,0.59749859,1968.3,1967.5,0.61932156]
[1771218317939,0.718,1968.4,1967.7,8.30492548]
[1771218319330,0.55875808,1968.3,1967.5,8.30492548]
[1771218320051,0.55875808,1968.3,1967.5,0.54735543]
[1771218321339,0.55875808,1968.3,1967.5,3.74119572]
[1771218324664,0.55875808,1968.3,1967.6,0.001]
[1771218324968,0.55985808,1968.2,1967.6,0.001]
[1771218325160,0.55985808,1968.2,1967.6,3.74219572]
[1771218326954,0.55875808,1968.1,1967.6,3.74219572]
[1771218330262,0.55875808,1968.1,1967.6,0.001]
[1771218334592,1.47485808,1968.2,1967.6,0.001]
[1771218336178,1.47485808,1968.2,1967.6,3.74219572]
[1771218337178,1.47485808,1968.2,1967.6,4.28955115]
[1771218337508,0.9161,1968.2,1967.6,4.28955115]
[1771218338612,0.9161,1968.2,1967.7,0.54735543]
[1771218340007,0.0011,1968.2,1967.8,0.54735543]
[1771218340408,1.11781402,1968.2,1967.9,8.30492548]
[1771218340615,1.11781402,1968.2,1968.0,0.54735543]
[1771218340906,1.11781402,1968.2,1968.0,4.28855115]
[1771218341599,1.11781402,1968.2,1968.1,0.54735543]
[1771218343785,0.915,1968.4,1968.2,0.51786379]
[1771218349395,1.221,1968.5,1968.2,0.57676382]
[1771218350624,1.221,1968.5,1968.3,0.57676382]
[1771218350829,1.219,1968.9,1968.4,7.75757005]
[1771218351031,1.219,1968.9,1968.4,8.33433387]
[1771218352546,1.219,1968.9,1968.4,0.57676382]
[1771218354344,0.0011,1968.6,1968.4,0.57676382]
[1771218356406,0.0011,1968.6,1968.2,0.57676382]
[1771218357043,0.0011,1968.6,1968.1,1.74576382]
[1771218358403,0.0011,1968.6,1968.1,0.57676382]
[1771218362146,0.0011,1968.6,1968.2,7.75757005]
[1771218362346,0.0011,1968.6,1968.2,8.33433387]
[1771218362646,0.56935606,1968.6,1968.0,8.93557005]
[1771218364352,0.56935606,1968.6,1968.0,7.75757005]
[1771218364746,0.56935606,1968.6,1968.0,8.33433387]
[1771218364941,0.0011,1968.6,1968.1,0.57676382]
[1771218365340,0.56935606,1968.6,1968.0,7.75757005]
[1771218366978,0.56935606,1968.6,1968.1,0.001]
[1771218368826,0.56935606,1968.6,1968.1,3.74219572]
[1771218371356,0.0011,1968.6,1968.1,4.31895954]
[1771218371950,0.56935606,1968.6,1968.1,3.74219572]
[1771218373162,0.56825606,1968.4,1967.9,3.74119572]
[1771218373353,0.56825606,1968.3,1967.9,3.74119572]
[1771218373548,0.524321,1968.2,1967.7,0.001]
[1771218377559,0.915,1968.3,1967.7,0.001]
[1771218377751,0.915,1968.3,1967.7,0.55277996]
[1771218377959,1.439321,1968.3,1967.7,0.55277996]
[1771218378354,0.524321,1968.2,1967.7,0.001]
[1771218378542,0.524321,1968.1,1967.7,0.001]
[1771218380841,0.524321,1967.9,1967.7,0.001]
[1771218381256,0.524321,1967.9,1967.8,0.001]
[1771218384777,0.524321,1967.9,1967.6,0.001]
[1771218384969,0.524321,1967.9,1967.0,8.30906144]
[1771218385171,0.524321,1967.9,1967.1,0.55177996]
[1771218385374,1.215,1968.0,1967.4,0.55177996]
[1771218385668,1.739321,1968.0,1967.4,0.55177996]
[1771218385871,0.524321,1967.8,1967.0,0.55331882]
[1771218386278,0.524321,1967.8,1967.0,0.00153886]
[1771218387268,0.524321,1967.6,1967.0,0.00153886]
[1771218387471,0.524321,1967.5,1967.0,0.00153886]
[1771218388676,1.218,1967.6,1967.0,0.00153886]
[1771218388677,0.524321,1967.2,1967.0,0.00153886]
[1771218388973,1.218,1967.1,1967.0,0.00153886]
[1771218389177,1.218,1967.2,1967.0,0.00153886]
[1771218389676,1.218,1967.5,1967.0,8.30906144]
[1771218389982,1.218,1967.6,1967.1,0.55177996]
[1771218392843,1.742321,1967.6,1967.0,0.00153886]
[1771218393155,0.524321,1967.5,1967.0,0.00153886]
[1771218394750,0.524321,1967.5,1967.1,0.001]
[1771218401369,0.524321,1967.4,1967.1,0.001]
[1771218401572,0.524321,1967.4,1966.5,3.74119572]
[1771218402201,0.524321,1967.4,1966.4,8.30752258]
[1771218402401,0.524321,1967.4,1966.5,0.55177996]
[1771218406705,0.48522293,1967.2,1966.4,7.75574262]
[1771218407004,0.48522293,1967.2,1966.4,8.26545673]
[1771218407375,0.48522293,1967.2,1966.5,0.50971411]
[1771218407575,1.218,1967.1,1966.5,0.50971411]
[1771218409910,1.70322293,1967.1,1966.6,0.001]
[1771218410299,1.70322293,1967.1,1966.6,3.74219572]
[1771218412914,0.48522293,1967.0,1966.6,3.74219572]
[1771218413105,0.48522293,1967.0,1966.6,0.001]
[1771218414982,1.218,1967.1,1966.6,0.001]
[1771218416089,1.218,1967.1,1966.6,3.74219572]
[1771218420988,1.40122293,1967.4,1966.8,0.50971411]
[1771218421311,2.61722293,1967.4,1966.8,0.50971411]
[1771218421685,2.132,1967.4,1966.8,0.50971411]
[1771218421890,0.48522293,1967.3,1966.7,3.74119572]
[1771218422105,0.48522293,1967.2,1966.7,3.74119572]
[1771218424317,0.48522293,1967.2,1966.6,0.001]
[1771218424920,0.48522293,1967.2,1966.7,0.001]
[1771218425220,0.48522293,1967.0,1966.7,0.001]
[1771218426622,0.0011,1967.1,1966.7,0.001]
[1771218426925,0.0011,1967.1,1966.8,0.50971411]
[1771218429522,0.0011,1967.1,1966.7,0.51071411]
[1771218433211,0.0011,1967.1,1966.7,8.26645673]
[1771218433611,0.0011,1967.1,1966.7,8.23157557]
[1771218437055,0.0011,1967.1,1966.7,11.97277129]
[1771218437752,0.0011,1967.1,1966.7,4.21702867]
[1771218438061,0.0011,1967.1,1966.7,0.001]
[1771218438062,0.49264382,1967.1,1966.7,0.001]
[1771218438640,0.49154382,1967.0,1966.7,0.001]
[1771218439353,0.49154382,1967.0,1966.8,0.001]
[1771218439721,0.49264382,1967.0,1966.8,0.001]
[1771218441136,0.0011,1967.0,1966.8,0.001]
[1771218444442,0.49264382,1967.0,1966.8,0.001]
[1771218446665,0.0011,1967.0,1966.8,0.47583295]
[1771218448773,0.0011,1967.0,1966.8,4.21702867]
[1771218450177,0.0011,1967.1,1966.8,4.21702867]
[1771218453749,0.0011,1967.1,1966.9,0.001]
[1771218454259,0.0011,1967.0,1966.9,0.001]
[1771218454578,0.0011,1967.1,1966.9,0.001]
[1771218464506,0.48950609,1967.1,1966.9,0.001]
[1771218464997,8.25367463,1967.1,1966.9,0.001]
[1771218465204,0.48840609,1967.0,1966.9,0.001]
[1771218466388,0.48840609,1967.0,1966.1,14.17416854]
[1771218466389,0.48840609,1967.0,1966.2,7.76416854]
[1771218466686,0.48840609,1967.0,1966.3,0.48244081]
[1771218467260,0.48840609,1967.0,1966.3,0.53329774]
[1771218467479,0.48840609,1967.0,1966.3,0.48244081]
[1771218468489,0.48950609,1967.0,1966.4,8.24660935]
[1771218468689,0.48950609,1967.0,1966.9,0.001]
[1771218470267,0.0011,1967.0,1966.9,0.001]
[1771218472004,0.0011,1967.3,1967.0,0.48244081]
[1771218472219,0.0011,1967.6,1967.1,8.24660935]
[1771218473321,0.46437943,1967.6,1967.0,3.74119572]
[1771218474106,0.46437943,1967.6,1967.0,4.22363653]
[1771218474605,0.46437943,1967.6,1967.0,3.74119572]
[1771218474798,0.46437943,1967.6,1967.1,8.24660935]
[1771218474799,0.0011,1967.6,1967.1,8.24660935]
[1771218475714,0.0011,1967.6,1967.2,0.48244081]